[Event "Titled Tuesday Blitz September 13 Late 2022"]
[White "Al Hosani, Omran"]
[Black "Winterberg, Lukas"]
[WhiteFideId "9308733"]
[BlackFideId "24622702"]
[WhiteElo "2167"]
[BlackElo "2349"]
[Result "1-0"]
[Round "06"]
[TimeControl "180+1"]
[Date "2022.09.13"]
[WhiteClock "0:00:19"]
[BlackClock "0:00:22"]

1. d4 {[%clk 0:02:59]}  Nf6 {[%clk 0:02:56]} 2. c4 {[%clk 0:02:59]}  e6 {[%clk 0:02:56]} 3. Nc3 {[%clk 0:03:00]}  d5 {[%clk 0:02:56]} 4. cxd5 {[%clk 0:03:00]}  exd5 {[%clk 0:02:57]} 5. Bg5 {[%clk 0:03:01]}  c6 {[%clk 0:02:56]} 6. e3 {[%clk 0:03:01]}  h6 {[%clk 0:02:57]} 7. Bh4 {[%clk 0:03:01]}  Be7 {[%clk 0:02:57]} 8. Nf3 {[%clk 0:03:02]}  O-O {[%clk 0:02:57]} 9. Bd3 {[%clk 0:03:02]}  Re8 {[%clk 0:02:57]} 10. O-O {[%clk 0:03:02]}  Ne4 {[%clk 0:02:54]} 11. Bxe7 {[%clk 0:02:59]}  Qxe7 {[%clk 0:02:55]} 12. Bxe4 {[%clk 0:02:54]}  dxe4 {[%clk 0:02:56]} 13. Nd2 {[%clk 0:02:54]}  f5 {[%clk 0:02:45]} 14. Rb1 {[%clk 0:02:48]}  Na6 {[%clk 0:02:44]} 15. b4 {[%clk 0:02:40]}  Be6 {[%clk 0:02:33]} 16. a3 {[%clk 0:02:29]}  Nc7 {[%clk 0:02:32]} 17. Nb3 {[%clk 0:02:27]}  Bxb3 {[%clk 0:02:19]} 18. Qxb3+ {[%clk 0:02:27]}  Qf7 {[%clk 0:02:18]} 19. Qxf7+ {[%clk 0:02:26]}  Kxf7 {[%clk 0:02:19]} 20. b5 {[%clk 0:02:27]}  Nd5 {[%clk 0:02:04]} 21. Na4 {[%clk 0:02:21]}  Rab8 {[%clk 0:01:41]} 22. bxc6 {[%clk 0:02:05]}  bxc6 {[%clk 0:01:41]} 23. Rfc1 {[%clk 0:02:06]}  Ke7 {[%clk 0:01:26]} 24. h3 {[%clk 0:02:00]}  Kd6 {[%clk 0:01:24]} 25. Nc5 {[%clk 0:01:56]}  Rb6 {[%clk 0:01:18]} 26. Nb7+ {[%clk 0:01:37]}  Kd7 {[%clk 0:01:07]} 27. Na5 {[%clk 0:01:33]}  Reb8 {[%clk 0:00:59]} 28. Rxb6 {[%clk 0:01:30]}  Rxb6 {[%clk 0:00:59]} 29. Kh2 {[%clk 0:01:21]}  g5 {[%clk 0:00:57]} 30. Rc5 {[%clk 0:01:12]}  f4 {[%clk 0:00:52]} 31. Nxc6 {[%clk 0:01:05]}  fxe3 {[%clk 0:00:46]} 32. Ne5+ {[%clk 0:00:58]}  Ke6 {[%clk 0:00:43]} 33. fxe3 {[%clk 0:00:55]}  Nxe3 {[%clk 0:00:42]} 34. Ng4 {[%clk 0:00:31]}  Nd5 {[%clk 0:00:21]} 35. Ra5 {[%clk 0:00:21]}  h5 {[%clk 0:00:19]} 36. Nf2 {[%clk 0:00:14]}  e3 {[%clk 0:00:18]} 37. Nd3 {[%clk 0:00:14]}  a6 {[%clk 0:00:13]} 38. Kg3 {[%clk 0:00:12]}  Rb3 {[%clk 0:00:11]} 39. Nc5+ {[%clk 0:00:13]}  Kf5 {[%clk 0:00:10]} 40. Nxb3 {[%clk 0:00:13]}  Ke4 {[%clk 0:00:11]} 41. Rxd5 {[%clk 0:00:11]}  h4+ {[%clk 0:00:09]} 42. Kg4 {[%clk 0:00:09]}  Kxd5 {[%clk 0:00:10]} 43. Kf3 {[%clk 0:00:10]}  Kc4 {[%clk 0:00:10]} 44. Kxe3 {[%clk 0:00:10]}  Kxb3 {[%clk 0:00:10]} 45. d5 {[%clk 0:00:10]}  Kxa3 {[%clk 0:00:11]} 46. d6 {[%clk 0:00:11]}  a5 {[%clk 0:00:12]} 47. d7 {[%clk 0:00:12]}  a4 {[%clk 0:00:12]} 48. d8=Q {[%clk 0:00:13]}  Kb2 {[%clk 0:00:13]} 49. Qd2+ {[%clk 0:00:13]}  Ka3 {[%clk 0:00:13]} 50. Qc3+ {[%clk 0:00:11]}  Ka2 {[%clk 0:00:13]} 51. Qc4+ {[%clk 0:00:12]}  Ka3 {[%clk 0:00:13]} 52. Ke4 {[%clk 0:00:12]}  g4 {[%clk 0:00:13]} 53. hxg4 {[%clk 0:00:12]}  Kb2 {[%clk 0:00:14]} 54. Kf5 {[%clk 0:00:12]}  a3 {[%clk 0:00:14]} 55. g5 {[%clk 0:00:12]}  a2 {[%clk 0:00:14]} 56. Qxa2+ {[%clk 0:00:12]}  Kxa2 {[%clk 0:00:15]} 57. g6 {[%clk 0:00:13]}  h3 {[%clk 0:00:14]} 58. gxh3 {[%clk 0:00:14]}  Kb3 {[%clk 0:00:15]} 59. g7 {[%clk 0:00:14]}  Kc3 {[%clk 0:00:16]} 60. g8=Q {[%clk 0:00:15]}  Kd3 {[%clk 0:00:16]} 61. h4 {[%clk 0:00:16]}  Ke3 {[%clk 0:00:17]} 62. h5 {[%clk 0:00:17]}  Kf3 {[%clk 0:00:18]} 63. h6 {[%clk 0:00:18]}  Ke3 {[%clk 0:00:18]} 64. h7 {[%clk 0:00:18]}  Kd4 {[%clk 0:00:19]} 65. h8=Q+ {[%clk 0:00:19]}  Kc5 {[%clk 0:00:20]} 66. Qe5+ {[%clk 0:00:19]}  Kb6 {[%clk 0:00:21]} 67. Qd8+ {[%clk 0:00:19]}  Ka7 {[%clk 0:00:22]} 68. Qdc7+ {[%clk 0:00:19]}  Ka6 {[%clk 0:00:22]} 69. Qea5# {[%clk 0:00:19]} 1-0


[Site "https://www.chess.com"]

[Event "Titled Tuesday Blitz September 13 Late 2022"]
[White "Atanasov, Anthony"]
[Black "Souleidis, Georgios"]
[WhiteFideId "2623897"]
[BlackFideId "4206827"]
[WhiteElo "1933"]
[BlackElo "2401"]
[Result "0-1"]
[Round "06"]
[TimeControl "180+1"]
[Date "2022.09.13"]
[WhiteClock "0:00:09"]
[BlackClock "0:00:10"]

1. d4 {[%clk 0:03:00]}  Nf6 {[%clk 0:02:57]} 2. Nf3 {[%clk 0:03:01]}  g6 {[%clk 0:02:57]} 3. Bf4 {[%clk 0:03:01]}  Bg7 {[%clk 0:02:57]} 4. e3 {[%clk 0:03:02]}  O-O {[%clk 0:02:57]} 5. Be2 {[%clk 0:03:03]}  d6 {[%clk 0:02:58]} 6. O-O {[%clk 0:03:03]}  Nfd7 {[%clk 0:02:59]} 7. Bg5 {[%clk 0:03:03]}  h6 {[%clk 0:02:59]} 8. Bh4 {[%clk 0:03:04]}  f5 {[%clk 0:02:58]} 9. Nc3 {[%clk 0:02:59]}  g5 {[%clk 0:02:58]} 10. Bc4+ {[%clk 0:02:54]}  Kh7 {[%clk 0:02:29]} 11. Nxg5+ {[%clk 0:02:49]}  hxg5 {[%clk 0:02:23]} 12. Qh5+ {[%clk 0:02:49]}  Bh6 {[%clk 0:02:23]} 13. Bxg5 {[%clk 0:02:50]}  Rf6 {[%clk 0:02:17]} 14. Nd5 {[%clk 0:02:26]}  Rg6 {[%clk 0:01:59]} 15. Bxe7 {[%clk 0:01:35]}  Qe8 {[%clk 0:01:55]} 16. Nf4 {[%clk 0:01:22]}  Nb6 {[%clk 0:01:16]} 17. Bg5 {[%clk 0:01:11]}  Bd7 {[%clk 0:01:05]} 18. Nxg6 {[%clk 0:00:35]}  Qxg6 {[%clk 0:01:05]} 19. Bg8+ {[%clk 0:00:19]}  Kg7 {[%clk 0:01:04]} 20. Bxh6+ {[%clk 0:00:16]}  Qxh6 {[%clk 0:01:05]} 21. Qf7+ {[%clk 0:00:14]}  Kh8 {[%clk 0:01:05]} 22. f4 {[%clk 0:00:13]}  Nc6 {[%clk 0:00:58]} 23. Rf3 {[%clk 0:00:02]}  Rxg8 {[%clk 0:00:57]} 24. Kh1 {[%clk 0:00:02]}  Nd8 {[%clk 0:00:23]} 25. Qe7 {[%clk 0:00:02]}  Nc6 {[%clk 0:00:11]} 26. Qf7 {[%clk 0:00:03]}  Nd8 {[%clk 0:00:04]} 27. Qb3 {[%clk 0:00:03]}  Rg4 {[%clk 0:00:01]} 28. Rh3 {[%clk 0:00:02]}  Rh4 {[%clk 0:00:02]} 29. Rxh4 {[%clk 0:00:03]}  Qxh4 {[%clk 0:00:02]} 30. Rf1 {[%clk 0:00:03]}  Qh6 {[%clk 0:00:02]} 31. Rf3 {[%clk 0:00:04]}  Kg7 {[%clk 0:00:02]} 32. Rh3 {[%clk 0:00:03]}  Qe6 {[%clk 0:00:02]} 33. Rg3+ {[%clk 0:00:03]}  Kf7 {[%clk 0:00:02]} 34. Qc3 {[%clk 0:00:02]}  Ke7 {[%clk 0:00:02]} 35. Rg7+ {[%clk 0:00:01]}  Nf7 {[%clk 0:00:03]} 36. Qxc7 {[%clk 0:00:01]}  Qxe3 {[%clk 0:00:02]} 37. h3 {[%clk 0:00:02]}  Qc1+ {[%clk 0:00:02]} 38. Kh2 {[%clk 0:00:02]}  Qe3 {[%clk 0:00:02]} 39. Rxf7+ {[%clk 0:00:01]}  Kxf7 {[%clk 0:00:02]} 40. Qxd6 {[%clk 0:00:02]}  Qe7 {[%clk 0:00:02]} 41. Qh6 {[%clk 0:00:02]}  Ke8 {[%clk 0:00:02]} 42. Qh8+ {[%clk 0:00:02]}  Qf8 {[%clk 0:00:03]} 43. Qe5+ {[%clk 0:00:03]}  Kd8 {[%clk 0:00:03]} 44. Qb8+ {[%clk 0:00:04]}  Bc8 {[%clk 0:00:03]} 45. Qxa7 {[%clk 0:00:04]}  Qd6 {[%clk 0:00:03]} 46. Kg3 {[%clk 0:00:03]}  Qxd4 {[%clk 0:00:03]} 47. Qb8 {[%clk 0:00:03]}  Qd7 {[%clk 0:00:03]} 48. Kh2 {[%clk 0:00:03]}  Nd5 {[%clk 0:00:03]} 49. Qe5 {[%clk 0:00:03]}  Ne7 {[%clk 0:00:04]} 50. c4 {[%clk 0:00:03]}  Qc7 {[%clk 0:00:03]} 51. Qf6 {[%clk 0:00:03]}  Qd7 {[%clk 0:00:03]} 52. Qh8+ {[%clk 0:00:03]}  Kc7 {[%clk 0:00:04]} 53. Qe5+ {[%clk 0:00:04]}  Qd6 {[%clk 0:00:03]} 54. Qe3 {[%clk 0:00:03]}  Bd7 {[%clk 0:00:03]} 55. c5 {[%clk 0:00:04]}  Qd5 {[%clk 0:00:03]} 56. Qxe7 {[%clk 0:00:04]}  Qc6 {[%clk 0:00:02]} 57. Qe5+ {[%clk 0:00:04]}  Kc8 {[%clk 0:00:02]} 58. h4 {[%clk 0:00:04]}  Qg6 {[%clk 0:00:01]} 59. g3 {[%clk 0:00:04]}  Qg4 {[%clk 0:00:02]} 60. Qh8+ {[%clk 0:00:05]}  Kc7 {[%clk 0:00:02]} 61. Qe5+ {[%clk 0:00:05]}  Kc8 {[%clk 0:00:02]} 62. Qe3 {[%clk 0:00:03]}  Bc6 {[%clk 0:00:02]} 63. Qe6+ {[%clk 0:00:02]}  Kc7 {[%clk 0:00:03]} 64. Qd6+ {[%clk 0:00:02]}  Kc8 {[%clk 0:00:03]} 65. Qf8+ {[%clk 0:00:02]}  Kc7 {[%clk 0:00:04]} 66. Qf7+ {[%clk 0:00:03]}  Kc8 {[%clk 0:00:04]} 67. Qe7 {[%clk 0:00:02]}  Qd1 {[%clk 0:00:04]} 68. Qe6+ {[%clk 0:00:02]}  Kb8 {[%clk 0:00:03]} 69. Qd6+ {[%clk 0:00:03]}  Qxd6 {[%clk 0:00:03]} 70. cxd6 {[%clk 0:00:03]}  Bd5 {[%clk 0:00:03]} 71. g4 {[%clk 0:00:03]}  fxg4 {[%clk 0:00:03]} 72. Kg3 {[%clk 0:00:04]}  Kc8 {[%clk 0:00:03]} 73. Kxg4 {[%clk 0:00:04]}  Kd7 {[%clk 0:00:04]} 74. Kg5 {[%clk 0:00:04]}  Bxa2 {[%clk 0:00:04]} 75. h5 {[%clk 0:00:04]}  Kxd6 {[%clk 0:00:05]} 76. Kg6 {[%clk 0:00:05]}  Bb1+ {[%clk 0:00:05]} 77. f5 {[%clk 0:00:05]}  Ke5 {[%clk 0:00:05]} 78. h6 {[%clk 0:00:04]}  Bxf5+ {[%clk 0:00:06]} 79. Kg7 {[%clk 0:00:05]}  Kd4 {[%clk 0:00:06]} 80. b4 {[%clk 0:00:05]}  Kc4 {[%clk 0:00:06]} 81. h7 {[%clk 0:00:03]}  Bxh7 {[%clk 0:00:06]} 82. Kxh7 {[%clk 0:00:04]}  Kxb4 {[%clk 0:00:07]} 83. Kg6 {[%clk 0:00:05]}  Kc3 {[%clk 0:00:08]} 84. Kf5 {[%clk 0:00:06]}  b5 {[%clk 0:00:08]} 85. Ke4 {[%clk 0:00:07]}  b4 {[%clk 0:00:09]} 86. Ke3 {[%clk 0:00:08]}  b3 {[%clk 0:00:09]} 87. Ke2 {[%clk 0:00:09]}  Kc2 {[%clk 0:00:10]} 0-1


[Site "https://www.chess.com"]

[Event "Titled Tuesday Blitz September 13 Late 2022"]
[White "Bayo Milagro, Alvaro"]
[Black "Hansen, Eric"]
[WhiteFideId "22275240"]
[BlackFideId "2606771"]
[WhiteElo "2270"]
[BlackElo "2568"]
[Result "0-1"]
[Round "06"]
[TimeControl "180+1"]
[Date "2022.09.13"]
[WhiteClock "0:00:01"]
[BlackClock "0:00:26"]

1. e4 {[%clk 0:03:00]}  c5 {[%clk 0:02:33]} 2. Nf3 {[%clk 0:03:00]}  e6 {[%clk 0:02:33]} 3. d4 {[%clk 0:03:00]}  cxd4 {[%clk 0:02:34]} 4. Nxd4 {[%clk 0:03:01]}  a6 {[%clk 0:02:34]} 5. Be2 {[%clk 0:02:59]}  Nf6 {[%clk 0:02:34]} 6. Nc3 {[%clk 0:02:59]}  Qc7 {[%clk 0:02:33]} 7. O-O {[%clk 0:02:57]}  d6 {[%clk 0:02:29]} 8. a4 {[%clk 0:02:42]}  Be7 {[%clk 0:02:28]} 9. Be3 {[%clk 0:02:42]}  b6 {[%clk 0:02:18]} 10. f4 {[%clk 0:02:41]}  Bb7 {[%clk 0:02:18]} 11. Bf3 {[%clk 0:02:41]}  Nbd7 {[%clk 0:02:18]} 12. Qe1 {[%clk 0:02:28]}  Nc5 {[%clk 0:02:05]} 13. Bf2 {[%clk 0:02:13]}  O-O {[%clk 0:02:00]} 14. e5 {[%clk 0:01:58]}  dxe5 {[%clk 0:01:57]} 15. fxe5 {[%clk 0:01:59]}  Nfd7 {[%clk 0:01:57]} 16. Bxb7 {[%clk 0:01:57]}  Nxb7 {[%clk 0:01:56]} 17. Nf3 {[%clk 0:01:27]}  Rad8 {[%clk 0:01:47]} 18. Ne4 {[%clk 0:01:18]}  Nbc5 {[%clk 0:01:45]} 19. Rd1 {[%clk 0:01:13]}  Nxe4 {[%clk 0:01:42]} 20. Qxe4 {[%clk 0:01:12]}  Nc5 {[%clk 0:01:43]} 21. Qf4 {[%clk 0:01:07]}  h6 {[%clk 0:01:36]} 22. b3 {[%clk 0:00:51]}  Qb7 {[%clk 0:01:31]} 23. Bxc5 {[%clk 0:00:32]}  Bxc5+ {[%clk 0:01:26]} 24. Kh1 {[%clk 0:00:33]}  Qc7 {[%clk 0:01:22]} 25. Nd2 {[%clk 0:00:29]}  Rd5 {[%clk 0:01:14]} 26. Nc4 {[%clk 0:00:18]}  Rfd8 {[%clk 0:01:14]} 27. Rxd5 {[%clk 0:00:17]}  Rxd5 {[%clk 0:01:10]} 28. h3 {[%clk 0:00:15]}  b5 {[%clk 0:01:08]} 29. axb5 {[%clk 0:00:15]}  axb5 {[%clk 0:01:09]} 30. Nd6 {[%clk 0:00:13]}  Bxd6 {[%clk 0:01:05]} 31. exd6 {[%clk 0:00:13]}  Rxd6 {[%clk 0:01:06]} 32. Qe5 {[%clk 0:00:11]}  Qd7 {[%clk 0:01:05]} 33. Rf3 {[%clk 0:00:09]}  Rd1+ {[%clk 0:01:01]} 34. Kh2 {[%clk 0:00:09]}  Qd6 {[%clk 0:00:56]} 35. Re3 {[%clk 0:00:09]}  Kf8 {[%clk 0:00:48]} 36. Kg3 {[%clk 0:00:06]}  Ke7 {[%clk 0:00:47]} 37. Qxd6+ {[%clk 0:00:06]}  Kxd6 {[%clk 0:00:44]} 38. Rf3 {[%clk 0:00:07]}  f5 {[%clk 0:00:31]} 39. b4 {[%clk 0:00:06]}  g5 {[%clk 0:00:29]} 40. Ra3 {[%clk 0:00:04]}  Rd4 {[%clk 0:00:25]} 41. c3 {[%clk 0:00:01]}  Rd2 {[%clk 0:00:26]} 0-1


[Site "https://www.chess.com"]

[Event "Titled Tuesday Blitz September 13 Late 2022"]
[White "Bortnyk, Olexandr"]
[Black "Makarian, Rudik"]
[WhiteFideId "14120828"]
[BlackFideId "44105681"]
[WhiteElo "2723"]
[BlackElo "2410"]
[Result "1-0"]
[Round "06"]
[TimeControl "180+1"]
[Date "2022.09.13"]
[WhiteClock "0:00:43"]
[BlackClock "0:00:01"]

1. e4 {[%clk 0:03:00]}  d6 {[%clk 0:02:59]} 2. d4 {[%clk 0:02:59]}  Nf6 {[%clk 0:03:00]} 3. Nc3 {[%clk 0:02:54]}  e5 {[%clk 0:03:00]} 4. Nf3 {[%clk 0:02:52]}  Nbd7 {[%clk 0:03:00]} 5. Rg1 {[%clk 0:02:50]}  g6 {[%clk 0:03:00]} 6. g4 {[%clk 0:02:49]}  exd4 {[%clk 0:03:00]} 7. Nxd4 {[%clk 0:02:48]}  Bg7 {[%clk 0:03:00]} 8. Be3 {[%clk 0:02:47]}  d5 {[%clk 0:02:58]} 9. exd5 {[%clk 0:02:22]}  Ne5 {[%clk 0:02:45]} 10. Qe2 {[%clk 0:01:48]}  O-O {[%clk 0:02:35]} 11. O-O-O {[%clk 0:01:46]}  Nxd5 {[%clk 0:02:08]} 12. Nf5 {[%clk 0:01:39]}  Nxc3 {[%clk 0:01:58]} 13. bxc3 {[%clk 0:01:40]}  Nd7 {[%clk 0:01:09]} 14. Nxg7 {[%clk 0:01:40]}  Kxg7 {[%clk 0:01:10]} 15. Qd2 {[%clk 0:01:31]}  Kg8 {[%clk 0:01:07]} 16. Bd4 {[%clk 0:01:21]}  c5 {[%clk 0:00:25]} 17. Bxc5 {[%clk 0:01:18]}  Re8 {[%clk 0:00:25]} 18. Bd4 {[%clk 0:01:08]}  Qa5 {[%clk 0:00:21]} 19. Bc4 {[%clk 0:01:05]}  Qa3+ {[%clk 0:00:17]} 20. Kb1 {[%clk 0:01:05]}  Nb6 {[%clk 0:00:09]} 21. Qh6 {[%clk 0:01:03]}  Qf8 {[%clk 0:00:09]} 22. Qxf8+ {[%clk 0:01:00]}  Kxf8 {[%clk 0:00:10]} 23. Bb5 {[%clk 0:00:53]}  Re6 {[%clk 0:00:03]} 24. g5 {[%clk 0:00:54]}  a6 {[%clk 0:00:02]} 25. Bc5+ {[%clk 0:00:51]}  Kg7 {[%clk 0:00:02]} 26. Rd8 {[%clk 0:00:51]}  Bd7 {[%clk 0:00:01]} 27. Rxa8 {[%clk 0:00:49]}  Bxb5 {[%clk 0:00:01]} 28. Bd4+ {[%clk 0:00:43]} 1-0


[Site "https://www.chess.com"]

[Event "Titled Tuesday Blitz September 13 Late 2022"]
[White "Cruz, Jonathan"]
[Black "Melian, Juan Sebastian"]
[WhiteFideId "3802124"]
[BlackFideId "3706575"]
[WhiteElo "2406"]
[BlackElo "1851"]
[Result "0-1"]
[Round "06"]
[TimeControl "180+1"]
[Date "2022.09.13"]
[WhiteClock "0:00:13"]
[BlackClock "0:00:18"]

1. e4 {[%clk 0:02:59]}  c5 {[%clk 0:02:57]} 2. Nf3 {[%clk 0:02:59]}  e6 {[%clk 0:02:58]} 3. Nc3 {[%clk 0:02:57]}  a6 {[%clk 0:02:57]} 4. g3 {[%clk 0:02:54]}  b5 {[%clk 0:02:44]} 5. Bg2 {[%clk 0:02:54]}  Bb7 {[%clk 0:02:44]} 6. d3 {[%clk 0:02:51]}  d6 {[%clk 0:02:44]} 7. O-O {[%clk 0:02:51]}  Nd7 {[%clk 0:02:43]} 8. Ng5 {[%clk 0:02:49]}  Be7 {[%clk 0:02:14]} 9. f4 {[%clk 0:02:45]}  Bxg5 {[%clk 0:02:08]} 10. fxg5 {[%clk 0:02:45]}  Ne7 {[%clk 0:02:09]} 11. Be3 {[%clk 0:02:39]}  O-O {[%clk 0:02:08]} 12. Qh5 {[%clk 0:02:35]}  Ne5 {[%clk 0:01:57]} 13. Rf2 {[%clk 0:02:32]}  Rc8 {[%clk 0:01:50]} 14. Raf1 {[%clk 0:02:30]}  d5 {[%clk 0:01:26]} 15. exd5 {[%clk 0:02:11]}  Nxd5 {[%clk 0:01:27]} 16. Nxd5 {[%clk 0:02:01]}  Bxd5 {[%clk 0:01:28]} 17. Bf4 {[%clk 0:01:51]}  Bxg2 {[%clk 0:01:27]} 18. Kxg2 {[%clk 0:01:49]}  Qd5+ {[%clk 0:01:27]} 19. Kh3 {[%clk 0:01:49]}  Ng6 {[%clk 0:01:27]} 20. Bd2 {[%clk 0:01:44]}  Qxa2 {[%clk 0:01:23]} 21. Bc3 {[%clk 0:01:41]}  b4 {[%clk 0:01:21]} 22. Bf6 {[%clk 0:00:50]}  Qd5 {[%clk 0:01:20]} 23. Rf4 {[%clk 0:00:41]}  gxf6 {[%clk 0:01:12]} 24. Rxf6 {[%clk 0:00:39]}  c4 {[%clk 0:00:53]} 25. R1f3 {[%clk 0:00:17]}  cxd3 {[%clk 0:00:44]} 26. Rxd3 {[%clk 0:00:17]}  Qe4 {[%clk 0:00:42]} 27. Rd7 {[%clk 0:00:15]}  Rxc2 {[%clk 0:00:38]} 28. Qd1 {[%clk 0:00:13]}  Qg2+ {[%clk 0:00:31]} 29. Kg4 {[%clk 0:00:13]}  Ne5+ {[%clk 0:00:18]} 0-1


[Site "https://www.chess.com"]

[Event "Titled Tuesday Blitz September 13 Late 2022"]
[White "Dounis, Alexandros"]
[Black "Tari, Aryan"]
[WhiteFideId "4213238"]
[BlackFideId "1510045"]
[WhiteElo "2204"]
[BlackElo "2612"]
[Result "0-1"]
[Round "06"]
[TimeControl "180+1"]
[Date "2022.09.13"]
[WhiteClock "0:00:01"]
[BlackClock "0:00:23"]

1. Nf3 {[%clk 0:02:45]}  Nf6 {[%clk 0:02:58]} 2. g3 {[%clk 0:02:45]}  c5 {[%clk 0:02:58]} 3. Bg2 {[%clk 0:02:45]}  Nc6 {[%clk 0:02:59]} 4. d4 {[%clk 0:02:46]}  cxd4 {[%clk 0:02:58]} 5. Nxd4 {[%clk 0:02:47]}  e5 {[%clk 0:02:49]} 6. Nxc6 {[%clk 0:02:47]}  dxc6 {[%clk 0:02:49]} 7. Qxd8+ {[%clk 0:02:47]}  Kxd8 {[%clk 0:02:50]} 8. e4 {[%clk 0:02:44]}  Be6 {[%clk 0:02:46]} 9. f3 {[%clk 0:02:34]}  Nd7 {[%clk 0:02:46]} 10. Be3 {[%clk 0:02:34]}  Bc5 {[%clk 0:02:43]} 11. Ke2 {[%clk 0:02:33]}  a5 {[%clk 0:02:43]} 12. Rd1 {[%clk 0:02:31]}  Bxe3 {[%clk 0:02:38]} 13. Kxe3 {[%clk 0:02:31]}  Kc7 {[%clk 0:02:39]} 14. a4 {[%clk 0:02:28]}  Nc5 {[%clk 0:02:34]} 15. Nc3 {[%clk 0:02:24]}  h5 {[%clk 0:02:22]} 16. Bf1 {[%clk 0:02:18]}  h4 {[%clk 0:02:16]} 17. g4 {[%clk 0:02:18]}  g5 {[%clk 0:02:15]} 18. Rd2 {[%clk 0:02:16]}  Rhd8 {[%clk 0:02:10]} 19. Rad1 {[%clk 0:02:11]}  Rxd2 {[%clk 0:02:09]} 20. Rxd2 {[%clk 0:02:12]}  f6 {[%clk 0:02:02]} 21. Be2 {[%clk 0:02:01]}  b6 {[%clk 0:01:52]} 22. Bf1 {[%clk 0:01:58]}  Nb7 {[%clk 0:01:52]} 23. b3 {[%clk 0:01:46]}  Nd6 {[%clk 0:01:49]} 24. Be2 {[%clk 0:01:41]}  Nf7 {[%clk 0:01:47]} 25. Bf1 {[%clk 0:01:37]}  Nh8 {[%clk 0:01:47]} 26. Bd3 {[%clk 0:01:23]}  Ng6 {[%clk 0:01:47]} 27. Ne2 {[%clk 0:01:23]}  Rb8 {[%clk 0:01:40]} 28. c4 {[%clk 0:01:19]}  Kd6 {[%clk 0:01:33]} 29. Rd1 {[%clk 0:01:02]}  Kc5 {[%clk 0:01:33]} 30. Kd2 {[%clk 0:01:02]}  Kb4 {[%clk 0:01:30]} 31. Kc2 {[%clk 0:00:59]}  Rd8 {[%clk 0:01:27]} 32. Kb2 {[%clk 0:00:55]}  b5 {[%clk 0:01:08]} 33. axb5 {[%clk 0:00:44]}  cxb5 {[%clk 0:01:08]} 34. cxb5 {[%clk 0:00:26]}  Bxb3 {[%clk 0:01:09]} 35. Rd2 {[%clk 0:00:22]}  a4 {[%clk 0:01:01]} 36. Nc1 {[%clk 0:00:15]}  Nf4 {[%clk 0:00:47]} 37. b6 {[%clk 0:00:15]}  Rb8 {[%clk 0:00:42]} 38. Bc2 {[%clk 0:00:14]}  a3+ {[%clk 0:00:25]} 39. Ka1 {[%clk 0:00:14]}  Bxc2 {[%clk 0:00:22]} 40. Rxc2 {[%clk 0:00:14]}  Rxb6 {[%clk 0:00:23]} 41. Na2+ {[%clk 0:00:14]}  Kb3 {[%clk 0:00:22]} 42. Rc3+ {[%clk 0:00:14]}  Ka4 {[%clk 0:00:23]} 43. Rc5 {[%clk 0:00:13]}  Rb3 {[%clk 0:00:21]} 44. Rc4+ {[%clk 0:00:10]}  Kb5 {[%clk 0:00:20]} 45. Rc3 {[%clk 0:00:09]}  Rxc3 {[%clk 0:00:21]} 46. Nxc3+ {[%clk 0:00:09]}  Kc4 {[%clk 0:00:21]} 47. Nb1 {[%clk 0:00:07]}  Kb3 {[%clk 0:00:20]} 48. Nd2+ {[%clk 0:00:04]}  Kc2 {[%clk 0:00:21]} 49. Nc4 {[%clk 0:00:04]}  Kd3 {[%clk 0:00:20]} 50. Nd6 {[%clk 0:00:04]}  Ke3 {[%clk 0:00:21]} 51. Ne8 {[%clk 0:00:05]}  Kxf3 {[%clk 0:00:21]} 52. Nxf6 {[%clk 0:00:06]}  Kg2 {[%clk 0:00:22]} 53. Nh7 {[%clk 0:00:04]}  Kxh2 {[%clk 0:00:22]} 54. Nxg5 {[%clk 0:00:04]}  Kg3 {[%clk 0:00:23]} 55. Ka2 {[%clk 0:00:04]}  Kxg4 {[%clk 0:00:23]} 56. Nf7 {[%clk 0:00:01]}  Nd3 {[%clk 0:00:23]} 0-1


[Site "https://www.chess.com"]

[Event "Titled Tuesday Blitz September 13 Late 2022"]
[White "Gokerkan, Cem Kaan"]
[Black "Karas, Marek"]
[WhiteFideId "6336760"]
[BlackFideId "14928558"]
[WhiteElo "2364"]
[BlackElo "2272"]
[Result "1/2-1/2"]
[Round "06"]
[TimeControl "180+1"]
[Date "2022.09.13"]
[WhiteClock "0:00:04"]
[BlackClock "0:00:02"]

1. e4 {[%clk 0:03:00]}  g6 {[%clk 0:02:59]} 2. d4 {[%clk 0:03:01]}  Bg7 {[%clk 0:02:59]} 3. Nc3 {[%clk 0:03:01]}  a6 {[%clk 0:02:58]} 4. h4 {[%clk 0:03:01]}  h5 {[%clk 0:02:55]} 5. Be3 {[%clk 0:03:00]}  b5 {[%clk 0:02:55]} 6. Qd2 {[%clk 0:03:00]}  Bb7 {[%clk 0:02:55]} 7. f3 {[%clk 0:03:00]}  d6 {[%clk 0:02:54]} 8. Nh3 {[%clk 0:03:00]}  Nd7 {[%clk 0:02:53]} 9. Ng5 {[%clk 0:03:00]}  e6 {[%clk 0:02:53]} 10. O-O-O {[%clk 0:03:00]}  Ngf6 {[%clk 0:02:46]} 11. Rg1 {[%clk 0:02:55]}  Qe7 {[%clk 0:02:42]} 12. Kb1 {[%clk 0:02:52]}  Nb6 {[%clk 0:02:27]} 13. e5 {[%clk 0:02:15]}  Nfd5 {[%clk 0:02:24]} 14. Nce4 {[%clk 0:02:12]}  Nxe3 {[%clk 0:02:12]} 15. Qxe3 {[%clk 0:02:12]}  Nd5 {[%clk 0:02:02]} 16. Qf2 {[%clk 0:01:34]}  dxe5 {[%clk 0:01:40]} 17. dxe5 {[%clk 0:01:35]}  Bxe5 {[%clk 0:01:40]} 18. Nc5 {[%clk 0:01:33]}  Bc6 {[%clk 0:01:37]} 19. Re1 {[%clk 0:01:34]}  Qf6 {[%clk 0:01:19]} 20. Nge4 {[%clk 0:00:59]}  Qg7 {[%clk 0:01:17]} 21. c3 {[%clk 0:00:50]}  O-O {[%clk 0:01:12]} 22. g4 {[%clk 0:00:50]}  hxg4 {[%clk 0:01:11]} 23. fxg4 {[%clk 0:00:47]}  b4 {[%clk 0:01:08]} 24. Nd3 {[%clk 0:00:33]}  bxc3 {[%clk 0:01:00]} 25. Nxe5 {[%clk 0:00:34]}  Qxe5 {[%clk 0:01:00]} 26. g5 {[%clk 0:00:34]}  Qf4 {[%clk 0:00:53]} 27. Nf6+ {[%clk 0:00:31]}  Kg7 {[%clk 0:00:52]} 28. Qxf4 {[%clk 0:00:24]}  Nxf4 {[%clk 0:00:53]} 29. bxc3 {[%clk 0:00:25]}  Rab8+ {[%clk 0:00:47]} 30. Kc1 {[%clk 0:00:23]}  Rh8 {[%clk 0:00:42]} 31. Rg4 {[%clk 0:00:23]}  Nd5 {[%clk 0:00:36]} 32. Rc4 {[%clk 0:00:24]}  Bb5 {[%clk 0:00:33]} 33. Rc5 {[%clk 0:00:24]}  Nxf6 {[%clk 0:00:26]} 34. gxf6+ {[%clk 0:00:25]}  Kxf6 {[%clk 0:00:26]} 35. Bxb5 {[%clk 0:00:22]}  axb5 {[%clk 0:00:18]} 36. Rxc7 {[%clk 0:00:23]}  Rxh4 {[%clk 0:00:13]} 37. Rf1+ {[%clk 0:00:24]}  Kg5 {[%clk 0:00:13]} 38. Rcxf7 {[%clk 0:00:22]}  Rc8 {[%clk 0:00:12]} 39. Rg1+ {[%clk 0:00:22]}  Rg4 {[%clk 0:00:11]} 40. Rxg4+ {[%clk 0:00:20]}  Kxg4 {[%clk 0:00:12]} 41. Rf6 {[%clk 0:00:20]}  g5 {[%clk 0:00:08]} 42. Kd2 {[%clk 0:00:16]}  Rc6 {[%clk 0:00:07]} 43. Kd3 {[%clk 0:00:13]}  Kg3 {[%clk 0:00:07]} 44. Rf1 {[%clk 0:00:12]}  g4 {[%clk 0:00:07]} 45. Rb1 {[%clk 0:00:13]}  Rc5 {[%clk 0:00:06]} 46. Kd4 {[%clk 0:00:12]}  Rd5+ {[%clk 0:00:06]} 47. Ke3 {[%clk 0:00:12]}  Kg2 {[%clk 0:00:05]} 48. Rb2+ {[%clk 0:00:12]}  Kh3 {[%clk 0:00:01]} 49. Rb1 {[%clk 0:00:09]}  g3 {[%clk 0:00:02]} 50. Rh1+ {[%clk 0:00:09]}  Kg4 {[%clk 0:00:02]} 51. Rh6 {[%clk 0:00:03]}  Re5+ {[%clk 0:00:03]} 52. Kd4 {[%clk 0:00:03]}  Rd5+ {[%clk 0:00:03]} 53. Ke3 {[%clk 0:00:03]}  Kg5 {[%clk 0:00:02]} 54. Rh3 {[%clk 0:00:03]}  Kg4 {[%clk 0:00:02]} 55. Rh6 {[%clk 0:00:04]} 1/2-1/2


[Site "https://www.chess.com"]